bitfinex/quotes_BTCUSD_20230101
["timestamp","ask_amount","ask_price","bid_price","bid_amount"]
[1672588978229,0.65282806,16592.0,16591.0,2.469103]
[1672588978493,0.65282806,16592.0,16591.0,2.356972]
[1672588978715,0.65282806,16592.0,16591.0,2.048472]
[1672588979480,0.65282806,16592.0,16591.0,1.445736]
[1672588979738,0.26792063,16592.0,16591.0,0.143]
[1672588979980,0.02786061,16592.0,16588.0,0.602828]
[1672588980239,0.24006002,16591.0,16588.0,0.602828]
[1672588980487,0.24006002,16591.0,16587.0,1.21298351]
[1672588980745,0.24006002,16590.0,16587.0,1.21298351]
[1672588981000,0.5,16589.0,16587.0,0.61012751]
[1672588981254,0.74006002,16589.0,16587.0,0.61012751]
[1672588981546,0.5,16589.0,16587.0,0.60997751]
[1672588981747,0.5,16589.0,16587.0,0.61997751]
[1672588981995,0.5,16589.0,16586.0,2.24099789]
[1672588981996,0.74006002,16589.0,16586.0,2.24099789]
[1672588982266,0.74006002,16589.0,16586.0,1.63811189]
[1672588982267,1.21074268,16589.0,16586.0,1.63811189]
[1672588982513,1.21074268,16589.0,16586.0,1.18813102]
[1672588982828,0.5,16587.0,16586.0,1.18813102]
[1672588983035,1.121015,16587.0,16586.0,1.18813102]
[1672588983530,0.5,16587.0,16586.0,1.18813102]
[1672588983767,0.5,16587.0,16586.0,1.19496986]
[1672588984253,0.5,16587.0,16586.0,1.18896986]
[1672588984501,1.121015,16587.0,16586.0,1.18813102]
[1672588984755,1.135015,16587.0,16586.0,1.20513102]
[1672588985003,1.61929963,16587.0,16586.0,1.20513102]
[1672588986509,1.60529963,16587.0,16586.0,1.18813102]
[1672588986754,2.32257866,16587.0,16586.0,1.19013102]
[1672588986996,3.42638003,16587.0,16586.0,1.18813102]
[1672588987251,3.91899043,16587.0,16586.0,1.18813102]
[1672588987748,3.55957154,16587.0,16586.0,1.18813102]
[1672588987994,3.33474922,16587.0,16586.0,1.18813102]
[1672588988243,3.33207631,16587.0,16586.0,1.18813102]
[1672588988496,3.76606299,16587.0,16586.0,1.18813102]
[1672588988998,3.21009066,16587.0,16586.0,1.18813102]
[1672588989294,3.38983399,16587.0,16586.0,1.18813102]
[1672588989545,4.15488594,16587.0,16586.0,1.18813102]
[1672588989805,3.79541182,16587.0,16586.0,1.18813102]
[1672588990060,2.62394795,16587.0,16586.0,1.18854876]
[1672588990334,2.44421651,16587.0,16586.0,1.18813102]
[1672588991366,3.04709751,16587.0,16586.0,1.18813102]
[1672588991848,1.84133551,16587.0,16586.0,1.18813102]
[1672588992092,1.84133551,16587.0,16586.0,1.18916165]
[1672588992591,1.84133551,16587.0,16586.0,1.18813102]
[1672588992856,1.34133551,16587.0,16586.0,1.18916165]
[1672588993112,1.34133551,16587.0,16586.0,1.18813102]
[1672588993842,1.34133551,16587.0,16586.0,1.18916165]
[1672588994109,0.135,16587.0,16586.0,3.00225547]
[1672588994370,0.135,16587.0,16586.0,3.60517347]
[1672588995113,0.52612433,16588.0,16586.0,3.60517347]
[1672588995415,0.24006002,16587.0,16586.0,1.18813102]
[1672588995628,1.121015,16587.0,16586.0,1.18813102]
[1672588996154,1.128015,16587.0,16586.0,1.19413102]
[1672588996419,1.121015,16587.0,16586.0,1.18813102]
[1672588996709,1.249015,16587.0,16586.0,1.19013102]
[1672588996966,1.121015,16587.0,16586.0,1.18813102]
[1672588997206,1.216015,16587.0,16586.0,1.19013102]
[1672588997982,1.71263337,16587.0,16586.0,1.18813102]
[1672588998212,1.84463337,16587.0,16586.0,1.18813102]
[1672588998966,2.02436481,16587.0,16586.0,1.18813102]
[1672588999697,2.62724581,16587.0,16586.0,1.18813102]
[1672589000733,2.62724581,16587.0,16586.0,1.1880345]
[1672589000988,3.97040566,16587.0,16586.0,1.1880345]
[1672589001249,4.15014834,16587.0,16586.0,1.1880345]
[1672589002727,3.42652997,16587.0,16586.0,1.1880345]
[1672589002989,3.36332555,16587.0,16586.0,1.1880345]
[1672589003247,3.92258209,16587.0,16586.0,1.1880345]
[1672589003488,4.22258209,16587.0,16586.0,1.1880345]
[1672589003735,4.46167083,16587.0,16586.0,1.1880345]
[1672589003987,4.0884863,16587.0,16586.0,1.1880345]
[1672589004226,3.84929599,16587.0,16586.0,1.1880345]
[1672589004472,3.53573663,16587.0,16586.0,1.1880345]
[1672589004988,4.60327545,16587.0,16586.0,1.1880345]
[1672589005242,3.38998555,16587.0,16586.0,1.1880345]
[1672589005504,3.86882882,16587.0,16586.0,1.1880345]
[1672589005751,4.40791756,16587.0,16586.0,1.1880345]
[1672589006219,3.69186271,16587.0,16586.0,1.1880345]
[1672589006463,4.16216802,16587.0,16586.0,1.1880345]
[1672589007989,3.54446331,16587.0,16586.0,1.1880345]
[1672589009277,4.02783015,16587.0,16586.0,1.1880345]
[1672589009737,3.54446331,16587.0,16586.0,1.1880345]
[1672589010283,4.44653297,16587.0,16586.0,1.1880345]
[1672589013298,4.98562171,16587.0,16586.0,1.1880345]
[1672589013552,3.97622766,16587.0,16586.0,1.1880345]
[1672589013800,4.4466448,16587.0,16586.0,1.1880345]
[1672589014820,4.03828959,16587.0,16586.0,1.1880345]
[1672589015563,4.49737833,16587.0,16586.0,1.1880345]
[1672589015809,4.02696119,16587.0,16586.0,1.1880345]
[1672589016539,4.52615441,16587.0,16586.0,1.1880345]
[1672589017571,4.59851134,16587.0,16586.0,1.1880345]
[1672589017811,4.12964108,16587.0,16586.0,1.1880345]
[1672589018060,3.51819541,16587.0,16586.0,1.1880345]
[1672589018314,3.986877,16587.0,16586.0,1.1880345]
[1672589019548,3.986877,16587.0,16586.0,0.11841253]
[1672589019549,4.59832267,16587.0,16586.0,0.11841253]
[1672589019803,4.12964108,16587.0,16586.0,0.11841253]
[1672589020547,4.12964108,16587.0,16584.0,0.61027851]
[1672589020817,1.04173632,16585.0,16584.0,0.61027851]
[1672589021066,1.66275132,16585.0,16584.0,0.61027851]
[1672589021286,1.04173632,16585.0,16582.0,1.39273314]
[1672589021552,1.08352572,16583.0,16582.0,0.98925827]
[1672589021794,0.81264429,16583.0,16582.0,0.50485827]
[1672589022769,0.81264429,16583.0,16582.0,0.50497003]
[1672589023026,1.08352697,16583.0,16582.0,0.50497003]
[1672589023264,0.81264429,16583.0,16582.0,0.50497003]
[1672589023509,1.21559347,16583.0,16582.0,0.44655851]
[1672589023769,0.94464429,16583.0,16582.0,0.44667027]
[1672589024017,0.94464429,16583.0,16582.0,0.44655851]
[1672589024488,1.21559323,16583.0,16582.0,0.44655851]
[1672589024731,0.94464429,16583.0,16582.0,0.44667027]
[1672589025712,0.94464429,16583.0,16582.0,0.44655851]
[1672589027053,0.93964429,16583.0,16582.0,0.44655851]
[1672589028504,0.93964429,16583.0,16582.0,0.44667027]
[1672589029730,0.75920036,16583.0,16582.0,1.04973327]
[1672589030939,0.93964429,16583.0,16582.0,0.44655851]
[1672589031922,0.93964429,16583.0,16581.0,1.206144]
[1672589031923,0.632,16583.0,16581.0,1.206144]
[1672589032200,0.7228304,16582.0,16581.0,1.7623461]
[1672589033191,0.451769,16582.0,16581.0,0.603065]
[1672589033440,0.530769,16582.0,16581.0,0.603065]
[1672589033938,0.530769,16582.0,16581.0,1.21269828]
[1672589034182,0.451769,16582.0,16581.0,1.21269828]
[1672589034432,0.530769,16582.0,16581.0,1.21493152]
[1672589034710,0.530769,16582.0,16581.0,0.603065]
[1672589035435,1.56891421,16583.0,16581.0,0.60529824]
[1672589035675,0.079,16582.0,16581.0,0.603065]
[1672589035931,1.56891421,16583.0,16581.0,0.603065]
[1672589036176,0.079,16582.0,16581.0,0.603065]
[1672589036401,1.56891421,16583.0,16581.0,0.603065]
[1672589036683,1.70091421,16583.0,16581.0,0.603065]
[1672589037174,1.70091421,16583.0,16580.0,2.21073797]
[1672589037428,0.45238497,16581.0,16580.0,2.21073797]
[1672589037671,0.54173632,16582.0,16580.0,1.76183797]
[1672589038638,0.54173632,16582.0,16581.0,0.00011165]
[1672589038897,0.54173632,16582.0,16580.0,1.76183797]
[1672589039150,0.62073632,16582.0,16580.0,1.76183797]
[1672589039426,0.54173632,16582.0,16581.0,0.60183348]
[1672589039722,0.62073632,16582.0,16581.0,0.60194513]
[1672589039936,0.54173632,16582.0,16581.0,0.60183348]
[1672589040171,0.62073632,16582.0,16581.0,0.60183348]
[1672589040419,0.54173632,16582.0,16580.0,1.68291105]
[1672589041428,0.54173632,16581.0,16580.0,1.68291105]
[1672589041658,0.54173632,16581.0,16580.0,1.07980905]
[1672589042660,0.55073632,16581.0,16580.0,1.0799207]
[1672589042906,0.55073632,16581.0,16580.0,1.07980905]
[1672589043873,1.14471266,16581.0,16578.0,2.01719246]
[1672589044130,0.54307462,16580.0,16579.0,0.56392133]
[1672589045139,0.62207462,16580.0,16579.0,0.56392133]
[1672589045639,0.62207462,16580.0,16579.0,0.56403299]
[1672589045926,0.62207462,16580.0,16579.0,0.56392133]
[1672589046624,0.62207462,16580.0,16579.0,0.56403299]
[1672589047089,0.62207462,16580.0,16579.0,0.56392133]
[1672589047333,0.62207462,16580.0,16578.0,1.667565]
[1672589047586,0.45236845,16579.0,16578.0,2.14147194]
[1672589047844,0.81415278,16579.0,16578.0,1.68038361]
[1672589048587,0.82315278,16579.0,16578.0,1.68038361]
[1672589048844,0.82315278,16579.0,16578.0,1.68027255]
[1672589049892,0.82315278,16579.0,16578.0,1.68016088]
[1672589050423,0.82315278,16579.0,16578.0,1.68027255]
[1672589050662,0.82315278,16579.0,16578.0,1.68016088]
[1672589051403,0.82315278,16579.0,16578.0,1.68027255]
[1672589051659,0.82315278,16579.0,16578.0,1.68016088]
[1672589052407,0.82315278,16579.0,16578.0,1.68027255]
[1672589053428,1.09438842,16579.0,16578.0,1.68027255]
[1672589053675,1.09438838,16579.0,16578.0,1.68027255]
[1672589053937,0.64201993,16579.0,16578.0,1.68027255]
[1672589054184,0.64201993,16579.0,16578.0,1.68016088]
[1672589054944,1.09438838,16579.0,16578.0,1.68016088]
[1672589055191,0.82315278,16579.0,16578.0,1.68016088]
[1672589055654,0.64199664,16579.0,16578.0,1.68016088]
[1672589057952,0.64199664,16579.0,16578.0,1.68027255]
[1672589058447,0.64199664,16579.0,16578.0,1.68016088]
[1672589060701,0.64199664,16579.0,16578.0,1.68027255]
[1672589060943,0.64199664,16579.0,16578.0,1.68016088]
[1672589061188,1.09436509,16579.0,16578.0,1.68016088]
[1672589062403,0.82315278,16579.0,16578.0,1.68016088]
[1672589062896,0.82315278,16579.0,16578.0,1.68027255]
[1672589063142,0.82315278,16579.0,16578.0,1.68016088]
[1672589063662,0.81415278,16579.0,16578.0,1.68016088]
[1672589063913,0.83015278,16579.0,16578.0,1.68627255]
[1672589064154,0.83015278,16579.0,16578.0,1.68616088]
[1672589064963,0.81415278,16579.0,16578.0,1.68016088]
[1672589065208,0.81415278,16579.0,16578.0,1.68027255]
[1672589065484,0.83015278,16579.0,16578.0,1.68627255]
[1672589065712,0.81415278,16579.0,16578.0,1.68027255]
[1672589066019,0.83015278,16579.0,16578.0,1.68616088]
[1672589066250,1.10139586,16579.0,16578.0,1.68616088]
[1672589066495,0.64902741,16579.0,16578.0,1.68616088]
[1672589067234,0.64902741,16579.0,16578.0,1.98616088]
[1672589067727,1.10139586,16579.0,16578.0,1.98616088]
[1672589068276,1.10139586,16579.0,16578.0,1.98627255]
[1672589068541,1.10139586,16579.0,16578.0,1.98616088]
[1672589068770,1.10139586,16579.0,16578.0,1.68616088]
[1672589069253,0.83015278,16579.0,16578.0,1.68627255]
[1672589069505,0.83015278,16579.0,16578.0,1.68616088]
[1672589070000,0.83015278,16579.0,16578.0,1.68604164]
[1672589073205,0.46836845,16579.0,16578.0,1.68604164]
[1672589073749,0.46836845,16579.0,16578.0,1.68615331]
[1672589074002,0.46836845,16579.0,16578.0,1.68604164]
[1672589074905,0.45236845,16579.0,16578.0,1.68004164]
[1672589075156,0.46436845,16579.0,16578.0,1.70215331]
[1672589076415,0.46436845,16579.0,16578.0,1.70204164]
[1672589077176,0.012,16579.0,16578.0,1.70204164]
[1672589077672,0.633015,16579.0,16578.0,1.70204164]
[1672589077927,0.633015,16579.0,16578.0,1.70215331]
[1672589078180,0.633015,16579.0,16578.0,1.70204164]
[1672589079931,1.17608962,16579.0,16578.0,1.70204164]
[1672589082545,1.17608962,16579.0,16578.0,1.2281347]
[1672589082764,1.71075363,16579.0,16578.0,1.2281347]
[1672589082982,1.71075363,16579.0,16578.0,0.6249497]
[1672589087388,1.08973863,16579.0,16578.0,0.6249497]
[1672589087680,1.71075363,16579.0,16578.0,0.6249497]
[1672589090054,1.63608564,16579.0,16578.0,0.022]
[1672589091566,1.63608564,16579.0,16578.0,0.02189722]
[1672589092591,1.16767901,16579.0,16578.0,0.02189722]
[1672589092810,1.71072765,16579.0,16578.0,0.02189722]
[1672589093059,2.17947807,16579.0,16578.0,0.02189722]
[1672589093302,1.71072765,16579.0,16578.0,0.02189722]
[1672589095533,2.17943935,16579.0,16578.0,0.02189722]
[1672589096525,1.63639061,16579.0,16578.0,0.02189722]
[1672589098009,1.71053993,16579.0,16578.0,0.02189722]
[1672589098500,2.17909861,16579.0,16578.0,0.02189722]
[1672589098757,1.71053993,16579.0,16578.0,0.02189722]
[1672589101931,2.17925202,16579.0,16578.0,0.02189722]
[1672589102187,2.17917547,16579.0,16578.0,0.02189722]
[1672589102663,1.71053993,16579.0,16578.0,0.02189722]
[1672589103421,1.71053993,16579.0,16578.0,0.48100959]
[1672589111656,1.71053993,16579.0,16578.0,0.48089953]
[1672589114366,1.17587592,16579.0,16578.0,0.4810112]
[1672589114606,0.55486092,16579.0,16578.0,0.48089953]
[1672589114858,1.17587592,16579.0,16578.0,0.48089953]
[1672589117314,0.55486092,16579.0,16578.0,0.48089953]
[1672589119028,1.17587592,16579.0,16578.0,0.48089953]
[1672589119754,0.633015,16579.0,16578.0,0.48089953]
[1672589120244,0.633015,16579.0,16578.0,0.4810112]
[1672589120483,1.17627939,16579.0,16578.0,0.48089953]
[1672589122582,1.17619434,16579.0,16578.0,0.48089953]
[1672589123563,0.63292995,16579.0,16578.0,0.02178716]
[1672589123820,1.13292995,16579.0,16578.0,0.02178716]
[1672589125275,1.67625543,16579.0,16578.0,0.02178716]
[1672589125514,1.13292995,16579.0,16578.0,0.02178716]
[1672589126284,1.67628604,16579.0,16578.0,0.02178716]
[1672589129337,1.13292995,16579.0,16578.0,0.02178716]
[1672589139051,1.60155885,16579.0,16578.0,0.02178716]
[1672589139313,2.21304321,16579.0,16578.0,0.02178716]
[1672589139828,0.63292995,16579.0,16578.0,0.02178716]
[1672589140067,0.01191495,16579.0,16578.0,0.02178716]
[1672589140571,0.55539085,16579.0,16578.0,0.49474704]
[1672589143312,0.01191495,16579.0,16578.0,0.49474704]
[1672589143809,0.01191495,16579.0,16578.0,0.02178716]
[1672589147419,0.51191495,16579.0,16578.0,0.02167684]
[1672589147656,0.01191495,16579.0,16578.0,0.02167684]
[1672589156610,0.62336062,16579.0,16578.0,0.02167684]
[1672589156847,1.74437562,16579.0,16578.0,0.02167684]
[1672589157091,1.24437562,16579.0,16578.0,0.02167684]
[1672589158583,0.63292995,16579.0,16578.0,0.02167684]
[1672589159646,1.24437562,16579.0,16578.0,0.02167684]
[1672589159938,0.63292995,16579.0,16578.0,0.02167684]
[1672589161876,1.24437562,16579.0,16578.0,0.02167684]
[1672589162330,0.63292995,16579.0,16578.0,0.02167684]
[1672589162570,1.24437562,16579.0,16578.0,0.02167684]
[1672589162820,0.63292995,16579.0,16578.0,0.02167684]
[1672589164858,0.63292995,16579.0,16578.0,0.64308353]
[1672589165865,0.01191495,16579.0,16578.0,0.64308353]
[1672589166112,0.55532034,16579.0,16578.0,0.64308353]
[1672589166419,0.01191495,16579.0,16578.0,3.22184367]
[1672589167141,0.46471036,16579.0,16578.0,3.22184367]
[1672589167389,0.46471036,16579.0,16578.0,3.33411567]
[1672589167643,0.82675981,16579.0,16578.0,3.92184367]
[1672589167895,0.46471036,16579.0,16578.0,3.92176385]
[1672589168369,0.46471036,16579.0,16578.0,3.45442405]
[1672589168834,0.46471036,16579.0,16578.0,3.15442405]
[1672589169081,0.46471036,16579.0,16578.0,3.45442405]
[1672589169585,0.46471036,16579.0,16578.0,3.92355719]
[1672589169826,0.82666211,16579.0,16578.0,3.92355719]
[1672589170058,0.82666211,16579.0,16578.0,3.45442405]
[1672589170760,0.82666211,16579.0,16578.0,3.92355719]
[1672589170975,0.82666211,16579.0,16578.0,3.87355719]
[1672589171219,0.82666211,16579.0,16578.0,3.40272038]
[1672589171535,0.82666211,16579.0,16578.0,3.40263071]
[1672589171785,0.46471036,16579.0,16578.0,3.10263071]
[1672589172270,0.46471036,16579.0,16578.0,3.10272038]
[1672589172507,0.46471036,16579.0,16578.0,3.10263071]
[1672589172998,0.01191495,16579.0,16578.0,3.10263071]
[1672589173451,0.01191495,16579.0,16578.0,3.10272038]
[1672589173801,0.46428663,16579.0,16578.0,3.10272038]
[1672589175809,0.8261323,16579.0,16578.0,3.40272038]
[1672589178053,0.8261323,16579.0,16578.0,3.35263071]
[1672589179284,0.8261323,16579.0,16578.0,3.35280129]
[1672589179791,0.8261323,16579.0,16578.0,3.35263071]
[1672589180034,0.8261323,16579.0,16578.0,3.3511149]
[1672589180470,0.8261323,16579.0,16578.0,3.35128548]
[1672589180951,1.09747278,16579.0,16578.0,3.35128548]
[1672589181187,1.09747262,16579.0,16578.0,3.35128548]
[1672589181433,0.64510094,16579.0,16578.0,3.35128548]
[1672589181719,1.09746193,16579.0,16578.0,3.35128548]
[1672589182484,1.09246193,16579.0,16578.0,3.3511149]
[1672589182738,0.8211323,16579.0,16578.0,3.3011149]
[1672589183255,0.8211323,16579.0,16578.0,3.00128548]
[1672589183753,0.8211323,16579.0,16578.0,3.0011149]
[1672589184497,0.8211323,16579.0,16578.0,3.00128548]
[1672589184744,0.8211323,16579.0,16578.0,3.0011149]
[1672589185476,0.8211323,16579.0,16578.0,3.00128548]
[1672589185958,0.8211323,16579.0,16578.0,3.0011149]
[1672589186475,0.8211323,16579.0,16578.0,3.00128548]
[1672589188959,0.64006915,16579.0,16578.0,3.00128548]
[1672589189205,0.82093756,16579.0,16578.0,3.31955643]
[1672589189461,0.45909189,16579.0,16578.0,3.31955643]
[1672589189716,0.45909189,16579.0,16578.0,3.30128548]
[1672589190492,0.45909189,16579.0,16578.0,3.41355748]
[1672589190764,0.45909189,16579.0,16578.0,3.30128548]
[1672589192811,0.18778336,16579.0,16578.0,3.8317246]
[1672589193070,0.00691495,16579.0,16578.0,3.8317246]
[1672589193351,0.820658,16580.0,16579.0,0.68086841]
[1672589193637,0.820658,16580.0,16579.0,3.0523237]
[1672589193892,0.820658,16580.0,16579.0,3.48285565]
[1672589194966,0.877658,16580.0,16579.0,3.48985565]
[1672589195742,0.877658,16580.0,16579.0,4.09302765]
[1672589196516,0.820658,16580.0,16579.0,4.08602765]
[1672589196758,0.820658,16580.0,16579.0,4.17702765]
[1672589196759,0.825658,16580.0,16579.0,4.17702765]
[1672589198324,0.825658,16580.0,16579.0,4.6269064]
[1672589198515,0.825658,16580.0,16579.0,4.79891886]
[1672589199526,0.825658,16580.0,16579.0,4.1587567]
[1672589200778,0.825658,16580.0,16579.0,4.73495061]
[1672589204808,0.825658,16580.0,16579.0,4.03495061]
[1672589205791,0.825658,16580.0,16579.0,4.73495061]
[1672589206302,0.820658,16580.0,16579.0,4.64395061]
[1672589206569,0.825658,16580.0,16579.0,4.73495061]
[1672589213286,0.825658,16580.0,16579.0,5.03652061]
[1672589214261,0.825658,16580.0,16579.0,4.5365572]
[1672589216023,0.825658,16580.0,16579.0,4.4242962]
[1672589217303,0.825658,16580.0,16579.0,4.5365572]
[1672589218996,0.825658,16580.0,16579.0,4.4242962]
[1672589219247,0.825658,16580.0,16579.0,4.5365572]
[1672589221996,0.825658,16580.0,16579.0,4.4242962]
[1672589222237,0.825658,16580.0,16579.0,3.8365572]
[1672589222479,0.825658,16580.0,16579.0,3.4227262]
[1672589222733,0.825658,16580.0,16579.0,2.95746668]
[1672589222986,0.825658,16580.0,16579.0,3.42273185]
[1672589223227,0.825658,16580.0,16579.0,4.12273185]
[1672589227348,0.820658,16580.0,16579.0,4.12273185]
[1672589228841,1.00152641,16580.0,16579.0,4.12273185]
[1672589231745,1.00152641,16580.0,16579.0,4.12269279]
[1672589231983,1.00152641,16580.0,16579.0,4.12269275]
[1672589232294,1.27283494,16580.0,16579.0,3.65746668]
[1672589232537,1.27283494,16580.0,16579.0,2.95746668]
[1672589232786,1.27283494,16580.0,16579.0,3.65746668]
[1672589234567,1.27283494,16580.0,16579.0,4.12273218]
[1672589234865,1.27283494,16580.0,16579.0,3.65746668]
[1672589235309,1.63468061,16580.0,16579.0,3.65746668]
[1672589236150,1.4538122,16580.0,16579.0,3.65746668]
[1672589237301,1.4538122,16580.0,16579.0,4.12273185]
[1672589237562,1.27295531,16580.0,16579.0,4.12273185]
[1672589238803,1.27295531,16580.0,16579.0,3.42273185]
[1672589239058,1.27295531,16580.0,16579.0,2.95746668]
[1672589239530,1.4538122,16580.0,16579.0,2.95746668]
[1672589239789,1.4538122,16580.0,16579.0,3.65746668]
[1672589240547,1.4538122,16580.0,16579.0,4.12288791]
[1672589240805,1.27298735,16580.0,16579.0,4.23514891]
[1672589241034,1.27298735,16580.0,16579.0,4.12288791]
[1672589241811,1.27287317,16580.0,16579.0,4.12288791]
[1672589243305,1.27287317,16580.0,16579.0,4.23514891]
[1672589245365,1.00156464,16580.0,16579.0,4.23514891]
[1672589247841,1.00156464,16580.0,16579.0,4.41455647]
[1672589248313,0.82054382,16580.0,16579.0,4.23514891]
[1672589248555,1.00156464,16580.0,16579.0,4.23514891]
[1672589249039,1.00156464,16580.0,16579.0,4.25341986]
[1672589251782,1.00156464,16580.0,16579.0,4.23514891]
[1672589252586,1.00156464,16580.0,16579.0,4.53672891]
[1672589254285,1.27287317,16580.0,16579.0,4.07130768]
[1672589254543,1.27287317,16580.0,16579.0,3.65746668]
[1672589254787,1.63471884,16580.0,16579.0,3.76560126]
[1672589255096,1.63474313,16580.0,16579.0,3.76568281]
[1672589255347,1.45369802,16580.0,16579.0,3.76560126]
[1672589255838,1.63476117,16580.0,16579.0,3.76560126]
[1672589256081,2.25577617,16580.0,16579.0,3.76560126]
[1672589256325,1.63476117,16580.0,16579.0,3.76568281]
[1672589256590,1.63476117,16580.0,16579.0,3.76560126]
[1672589257298,1.45393076,16580.0,16579.0,3.76560126]
[1672589257783,1.45393076,16580.0,16579.0,3.76568281]
[1672589258283,1.63476117,16580.0,16579.0,3.76560126]
[1672589258521,1.63476117,16580.0,16579.0,3.76576737]
[1672589258766,1.63476117,16580.0,16579.0,3.76560126]
[1672589259247,1.90629672,16580.0,16579.0,3.76560126]
[1672589259763,1.90629672,16580.0,16579.0,3.76576737]
[1672589260260,1.90629672,16580.0,16579.0,3.76560126]
[1672589261207,1.63476117,16580.0,16579.0,3.76560126]
[1672589261958,1.63476117,16580.0,16579.0,3.76584485]
[1672589262172,1.63476117,16580.0,16579.0,3.76560126]
[1672589263803,1.63476117,16580.0,16579.0,3.76584485]
[1672589264081,1.63476117,16580.0,16579.0,3.46560126]
[1672589264559,2.25577617,16580.0,16579.0,3.46560126]
[1672589265088,2.25577617,16580.0,16579.0,3.46584485]
[1672589265336,2.25577617,16580.0,16579.0,3.46560126]
[1672589265869,1.8939305,16580.0,16579.0,3.46560126]
[1672589266120,2.25585897,16580.0,16579.0,3.46560126]
[1672589266624,2.25585897,16580.0,16579.0,3.76584485]
[1672589266870,2.25585897,16580.0,16579.0,3.76552914]
[1672589269090,1.63484397,16580.0,16579.0,3.76552914]
[1672589270783,1.63477026,16580.0,16579.0,3.76552914]
[1672589271026,2.25578526,16580.0,16579.0,3.76552914]
[1672589271775,1.63477026,16580.0,16579.0,3.76552914]
[1672589272029,1.63477026,16580.0,16579.0,3.06552914]
[1672589272564,2.25578526,16580.0,16579.0,3.06552914]
[1672589272753,2.25578526,16580.0,16579.0,3.76552914]
[1672589276604,2.25578526,16580.0,16579.0,3.46552914]
[1672589277085,1.63477026,16580.0,16579.0,3.46552914]
[1672589277584,1.27284179,16580.0,16579.0,3.46552914]
[1672589279038,1.63465515,16580.0,16579.0,3.06552914]
[1672589279991,1.63465515,16580.0,16579.0,3.76552914]
[1672589280274,1.90599534,16580.0,16579.0,3.76552914]
[1672589280518,1.45362366,16580.0,16579.0,3.76552914]
[1672589281034,1.90599534,16580.0,16579.0,3.76552914]
[1672589281283,1.45362366,16580.0,16579.0,3.76552914]
[1672589281781,1.90599534,16580.0,16579.0,3.76552914]
[1672589282033,1.63465515,16580.0,16579.0,3.46552914]
[1672589282827,1.90599171,16580.0,16579.0,3.46552914]
[1672589283029,1.63465515,16580.0,16579.0,3.76552914]
[1672589283267,1.90599169,16580.0,16579.0,3.76552914]
[1672589283511,1.63465515,16580.0,16579.0,3.46552914]
[1672589284015,1.90599696,16580.0,16579.0,3.46552914]
[1672589284489,1.63465515,16580.0,16579.0,3.46552914]
[1672589285732,1.63465515,16580.0,16579.0,3.76552914]
[1672589285988,1.63465515,16580.0,16579.0,3.06552914]
[1672589286990,1.63465515,16580.0,16579.0,3.76552914]
[1672589287491,1.90602271,16580.0,16579.0,3.76552914]
[1672589287757,1.90602261,16580.0,16579.0,3.76552914]
[1672589288003,1.90602274,16580.0,16579.0,3.76552914]
[1672589288279,1.90606595,16580.0,16579.0,3.76552914]
[1672589288526,1.45369427,16580.0,16579.0,3.87779014]
[1672589289009,1.27281667,16580.0,16579.0,4.34332842]
[1672589289751,1.27281667,16580.0,16579.0,3.87786822]
[1672589289992,1.27281667,16580.0,16579.0,4.23106742]
[1672589290244,1.63463003,16580.0,16579.0,3.87786822]
[1672589290492,1.45369427,16580.0,16579.0,3.76560722]
[1672589293289,1.45369427,16580.0,16579.0,3.87786822]
[1672589293776,1.45369427,16580.0,16579.0,3.87778247]
[1672589294331,1.45369427,16580.0,16579.0,3.76552147]
[1672589294784,1.90606595,16580.0,16579.0,3.76552147]
[1672589295046,1.45369427,16580.0,16579.0,3.76552147]
[1672589295289,1.90606595,16580.0,16579.0,4.23094279]
[1672589295538,1.27291255,16580.0,16579.0,4.34320379]
[1672589297069,1.27291255,16580.0,16579.0,4.64478379]
[1672589299050,1.00150175,16580.0,16579.0,4.64478379]
[1672589300500,1.00150175,16580.0,16579.0,4.46418489]
[1672589303251,0.82047011,16580.0,16579.0,4.46418489]
[1672589304989,0.82047011,16580.0,16579.0,4.46416489]
[1672589305233,0.82047011,16580.0,16579.0,4.16260489]
[1672589305500,0.82047011,16580.0,16579.0,4.46416489]
[1672589313741,0.82047011,16580.0,16579.0,3.76416489]
[1672589314729,0.82047011,16580.0,16579.0,4.46416489]
[1672589318898,0.82037867,16580.0,16579.0,4.46416489]
[1672589320692,0.82037867,16580.0,16579.0,3.76416489]
[1672589321689,0.82037867,16580.0,16579.0,4.46416489]
[1672589324634,0.82037867,16580.0,16579.0,4.46417489]
[1672589330352,0.82037867,16580.0,16579.0,4.64358245]
[1672589335879,0.82037867,16580.0,16579.0,3.94358245]
[1672589336123,0.82037867,16580.0,16579.0,4.21355838]
[1672589336338,0.82037867,16580.0,16579.0,3.94358245]
[1672589336877,0.82037867,16580.0,16579.0,4.64358245]
[1672589337131,0.82037867,16580.0,16579.0,4.91355838]
[1672589337638,0.82037867,16580.0,16579.0,4.64358245]
[1672589344705,0.82037867,16580.0,16579.0,3.94358245]
[1672589344943,0.82037867,16580.0,16579.0,4.21355838]
[1672589345194,0.82037867,16580.0,16579.0,5.10514805]
[1672589345687,0.82037867,16580.0,16579.0,5.80514805]
[1672589346427,0.82037867,16580.0,16579.0,3.99563205]
[1672589346639,0.82037867,16580.0,16579.0,5.69288705]
[1672589346887,0.82037867,16580.0,16579.0,5.80514805]
[1672589347387,0.82037867,16580.0,16579.0,4.91355838]
[1672589348354,0.82037867,16580.0,16579.0,5.80514862]
[1672589351788,0.82037867,16580.0,16579.0,5.10514862]
[1672589352771,0.82037867,16580.0,16579.0,5.80514862]
[1672589353031,1.00141031,16580.0,16579.0,3.69859669]
[1672589353277,1.00141031,16580.0,16579.0,4.16401485]
[1672589354340,1.00141031,16580.0,16579.0,4.46401485]
[1672589360390,1.00141031,16580.0,16579.0,3.76401485]
[1672589361348,1.00141031,16580.0,16579.0,4.46401485]
[1672589366963,1.00141031,16580.0,16579.0,4.16244485]
[1672589367207,1.00141031,16580.0,16579.0,3.76401485]
[1672589367702,1.00141031,16580.0,16579.0,3.65175385]
[1672589367940,1.00141031,16580.0,16579.0,3.76401485]
[1672589368190,1.00141031,16580.0,16579.0,4.46401485]
[1672589370038,1.00141031,16580.0,16579.0,3.99859669]
[1672589370786,1.27282111,16580.0,16579.0,3.99859669]
[1672589371032,1.00141031,16580.0,16579.0,4.46405689]
[1672589371526,0.82037867,16580.0,16579.0,4.46405689]
[1672589371775,1.00141031,16580.0,16579.0,4.46405689]
[1672589372024,0.82037867,16580.0,16579.0,4.46421401]
[1672589372518,1.00141031,16580.0,16579.0,4.46421401]
[1672589374270,1.00141031,16580.0,16579.0,3.76421401]
[1672589374758,0.82037867,16580.0,16579.0,3.76421401]
[1672589375000,1.00141031,16580.0,16579.0,3.76421401]
[1672589375255,1.00141031,16580.0,16579.0,4.46421401]
[1672589378922,0.82037867,16580.0,16579.0,4.46421401]
[1672589380459,0.82037867,16580.0,16579.0,4.64362157]
[1672589381420,0.82037867,16580.0,16579.0,3.94362157]
[1672589381561,0.82037867,16580.0,16579.0,3.76421401]
[1672589381784,0.82037867,16580.0,16579.0,3.94362157]